Workbook

Sheet Escopo de Fornecimento
B1: Ministério do Desenvolvimento Regional - MDR
B2: Companhia do Desenvolvimento dos Vales do São Francisco e Parnaíba
B3: Codevasf - Brasília
A7: Objeto: Fornecimento e montagem de equipamentos hidromecânicos da descarga de fundo, da barragem
A8: do Paranã , nos municípios de Flores de Goiás e Formosa, localizado no estado de Goiás.
A11: Valores com o BDI inclusos
A12: Orçamento
A14: 1 | B14: FORNECIMENTOS
G15: NÃO DESONERADO
A16: Item | B16: Descrição | C16: Unid. | D16: Qtd | G16: Vlr Unitário | H16: Vlr Total
A17: 1.1 | B17: Válvula Dispersora, DN 1000 mm, ASTM A36 x 40 mca, com acion. | C17: unid. | D17: 1 | G17: 1203600 | H17: =D17*G17 -> 1203600
B18: Oleodinamico + Quadro elétrico de alimentação e comando
A19: 1.2 | B19: Comporta desliz., c/quadro de guiam/vedação, acion. Oleodinamico | C19: unid. | D19: 2 | G19: 467476.6667 | H19: =D19*G19 -> 934953.3333
B20: + Quadro de alimentação e comando
A21: 1.3 | B21: Sensor/transmissor de nível c/ sonda hidrostática, IP68 | C21: unid. | D21: 2 | G21: 2862.1844 | H21: =D21*G21 -> 5724.3688
B22: + cx de interligação
A23: 1.4 | B23: Tubo de flange ponta (TFP), DN 1000 x 600 mm, PN10, ASTM A36 | C23: unid. | D23: 2 | G23: 32292.66667 | H23: =G23*D23 -> 64585.33333
A24: 1.5 | B24: Virola flange-flange, DN 1000 mm PN10, ASTM A36 | C24: unid. | D24: 2 | G24: 57426.66667 | H24: =G24*D24 -> 114853.3333
A25: 1.6 | B25: Junta dresser, DN 1000 mm, PN10, ASTM A36 | C25: unid. | D25: 2 | G25: 35400 | H25: =G25*D25 -> 70800
A26: 1.7 | B26: Crivo de proteção p/fixação das sondas de nível, aço inox | C26: unid. | D26: 1 | G26: 843.4876 | H26: =G26*D26 -> 843.4876
A27: 1.8 | B27: Boia de sinaliz.náutica + cabo nylon 1/4" x 25 m | C27: unid. | D27: 1 | G27: 544.6683333 | H27: =G27*D27 -> 544.6683333
A28: 1.9 | B28: Gerador diesel portátil, trifásico 380V, autonomia de 5 horas | C28: unid. | D28: 1 | G28: 9236.3674 | H28: 9236.3674
A29: 1.10 | B29: Cabo tripolar, seção 6 mm², 10m, c/plug indust. 5 pinos 3P+T+N 220V | C29: unid. | D29: 1 | G29: 30.1844 | H29: 30.1844
A30: 1.11 | B30: Bloqueador Inflável, Multid. cilindrico, Alta Perf., 600/1200 mm | C30: unid. | D30: 2 | G30: 17256.32 | H30: 34512.64
A31: 1.12 | B31: Kit de inflar (Mangueira 30m, conexões, válv.esfera, manometro, | C31: kit | D31: 2 | G31: 519.2 | H31: =D31*G31 -> 1038.4
B32: eng.rápido, abraçadeira)
A33: 1.13 | B33: Compressor de ar comprimido 50L, 220V | C33: Unid. | D33: 1 | G33: 1412.3538 | H33: =G33*D33 -> 1412.3538
A34: 1.14 | B34: Guindaste Hidráulico 60T, lança de 40 m com motorista e encargos | C34: H | D34: 70 | G34: 106.6752 | H34: 7467.264
A35: 1.15 | B35: Construção de abrigo para Unidade Oleodinâmica e Painéis | C35: m² | D35: 36 | G35: 1925.1968 | H35: 69307.0848
B36: TOTAL DOS FORNECIMENTOS | H36: =SUM(H17:H35) -> 2518908.819
A38: 2 | B38: MÃO DE OBRA NECESSÁRIA ( COM ENCARGOS COMPLEMENTARES )
G39: NÃO DESONERADO
A40: Item | B40: Descrição | C40: Unidade | D40: Quantidade | G40: Valor Unitário | H40: Valor Total
A41: 2.1 | B41: Engenheiro Civil responsável pela obra | C41: mês | D41: 3 | G41: ='SINAPI SICRO MÃO DE OBRA'!F33 -> 34965.4528 | H41: =G41*D41 -> 104896.3584
A42: 2.2 | B42: Montador de estruturas metálicas | C42: mês | D42: 3 | G42: ='SINAPI SICRO MÃO DE OBRA'!F34 -> 6234.6624 | H42: =G42*D42 -> 18703.9872
A43: 2.3 | B43: Ajudante de estruturas metalicas | C43: mês | D43: 6 | G43: ='SINAPI SICRO MÃO DE OBRA'!F35 -> 4768.7168 | H43: 28612.3008
A44: 2.4 | B44: Eletricista de manutenção industrial | C44: mês | D44: 3 | G44: ='SINAPI SICRO MÃO DE OBRA'!F36 -> 5900.6464 | H44: 17701.9392
A45: 2.5 | B45: Montador eletromecânico | C45: H | D45: 40 | G45: ='SINAPI SICRO MÃO DE OBRA'!F37 -> 45.056 | H45: 1802.24
A46: 2.6 | B46: Técnico de Segurança do Trabalho | C46: H | D46: 135 | G46: ='SINAPI SICRO MÃO DE OBRA'!F38 -> 31.7568 | H46: 4287.168
A47: 2.7 | B47: Topógrafo | C47: H | D47: 40 | G47: ='SINAPI SICRO MÃO DE OBRA'!F39 -> 25.4464 | H47: 1017.856
A48: 2.8 | B48: Auxiliar de Topógrafo | C48: H | D48: 40 | G48: ='SINAPI SICRO MÃO DE OBRA'!F40 -> 11.5584 | H48: 462.336
A49: 2.9 | B49: Vigia noturno | C49: H | D49: =7*90 -> 630 | G49: ='SINAPI SICRO MÃO DE OBRA'!F41 -> 27.8528 | H49: 17547.264
A50: 2.10 | B50: Vigia diurno | C50: H | D50: 408 | G50: ='SINAPI SICRO MÃO DE OBRA'!F42 -> 22.2848 | H50: 9092.1984
A51: 2.11 | B51: Assentamento de tubode aço DN 1000 mm | C51: H | D51: 48 | G51: ='SINAPI SICRO MÃO DE OBRA'!F43 -> 78.5408 | H51: 3769.9584
A52: 2.12 | B52: Mergulhador | C52: H | D52: 30 | G52: ='SINAPI SICRO MÃO DE OBRA'!E48 -> 34.49821152 | H52: 1034.946346
A53: 2.13 | B53: Ajudante especializado para mergulhador | C53: H | D53: 30 | G53: ='SINAPI SICRO MÃO DE OBRA'!E49 -> 21.6548 | H53: 649.644
B54: TOTAL MÃO DE OBRA | H54: =SUM(H41:H53) -> 209578.1967
A56: 3 | B56: BLOCO DE ANCORAGEM
G57: NÃO DESONERADO
A58: Item | B58: Descrição | C58: Unidade | D58: Quantidade | G58: Valor Unitário | H58: Valor Total
A59: 3.1 | B59: Escavação manual para bloco de coroamento ou sapata sem escavação para formas | C59: M³ | D59: 15 | G59: ='SINAPI BLOCO DE ANCORAGEM'!G21 -> 165.6192 | H59: =G59*D59 -> 2484.288
A60: 3.2 | B60: Fabricação, montagem e desmontagem de forma para bloco de coroamento | C60: M² | D60: 38 | G60: ='SINAPI BLOCO DE ANCORAGEM'!G23 -> 162.0864 | H60: 6159.2832
A61: 3.3 | B61: Concretagem de blocos de coroamento , FCK 30, com lançamento, adensamento e acabamento | C61: M³ | D61: 28 | G61: ='SINAPI BLOCO DE ANCORAGEM'!G25 -> 778.4704 | H61: 21797.1712
B62: TOTAL CONCRETAGEM BLOCO DE ANCORAGEM | H62: =SUM(H59:H61) -> 30440.7424
B64: RESUMO | E64: NÃO DESONERADO
A65: Item | B65: Descrição | E65: Valor Total
A66: 1 | B66: FORNECIMENTOS | E66: =H36 -> 2518908.819
A67: 2 | B67: MÃO DE OBRA NECESSÁRIA ( COM ENCARGOS COMPLEMENTARES ) | E67: =H54 -> 209578.1967
A68: 3 | B68: CONCRETAGEM BLOCO DE ANCORAGEM | E68: =H62 -> 30440.7424
B69: TOTAL | E69: =SUM(E66:E68) -> 2758927.758

Sheet SINAPI SICRO MÃO DE OBRA
C1: Ministério do Desenvolvimento Regional - MDR
C2: Companhia do Desenvolvimento dos Vales do São Francisco e Parnaíba
C3: Codevasf - Brasília
A6: Montagem da Válvula Dispersora, Comportas, unidade oleodinâmica e Painéis elétricos
H20: =24*17 -> 408
A30: 2 - SINAPI PARA MÃO DE OBRA COM ENCARGOS COMPLEMENTARES (não desonerado)
A31: *SINAPI GO fev/22
A32: Ítem | B32: Sinapi | C32: Discriminação | D32: Unidade | E32: Valor Unitário (R$) | F32: Valor com BDI (R$) | G32: Quantidade
A33: 2.1 | B33: 101403 | C33: ENGENHEIRO CIVIL RESPONSÁVEL PELA OBRA | D33: mês | E33: 27316.76 | F33: =E33*(1+BDI!D35) -> 34965.4528 | G33: 3 meses
A34: 2.2 | B34: 101418 | C34: MONTADOR DE ESTRUTURAS METÁLICAS | D34: mês | E34: 4870.83 | F34: =E34*(1+BDI!D35) -> 6234.6624 | G34: 3 meses
A35: 2.3 | B35: 101376 | C35: AJUDANTE DE ESTRUTURAS METALICAS | D35: mês | E35: 3725.56 | F35: =E35*(1+BDI!D35) -> 4768.7168 | G35: 3 meses
A36: 2.4 | B36: 101400 | C36: ELETRICISTA DE MANUTENÇÃO INDUSTRIAL | D36: mês | E36: 4609.88 | F36: =E36*(1+BDI!D35) -> 5900.6464 | G36: 3 meses
A37: 2.5 | B37: 88279 | C37: MONTADOR ELETROMECÂNICO | D37: H | E37: 35.2 | F37: =E37*(1+BDI!D35) -> 45.056 | G37: 5 dias x 8 horas/dia
A38: 2.6 | B38: 100309 | C38: TÉCNICO SEGURANÇA DO TRABALHO | D38: H | E38: 24.81 | F38: =E38*(1+BDI!D35) -> 31.7568 | G38: 3 dias/semana x 3 horas/dia
A39: 2.7 | B39: 90781 | C39: TOPÓGRAFO | D39: H | E39: 19.88 | F39: =E39*(1+BDI!D35) -> 25.4464 | G39: 10 dias x 4 horas/dias
A40: 2.8 | B40: 88253 | C40: AUX. TOPÓGRAFO | D40: H | E40: 9.03 | F40: =E40*(1+BDI!D35) -> 11.5584 | G40: 10 dias x 4 horas/dias
A41: 2.9 | B41: 88326 | C41: VIGIA NOTURNO | D41: H | E41: 21.76 | F41: =E41*(1+BDI!D35) -> 27.8528 | G41: de 22h a 5 h (90 dias x 7horas)
A42: 2.10 | B42: 100289 | C42: VIGIA DIURNO | D42: H | E42: 17.41 | F42: =E42*(1+BDI!D35) -> 22.2848 | G42: sábado e domingo de 5h a 22h ( 24 dias x 17 horas) | H42: =24*17 -> 408
A43: 2.11 | B43: 97177 | C43: ASSENTAMENTO DE TUBO DE AÇO DN 1000 | D43: H | E43: 61.36 | F43: =E43*(1+BDI!D35) -> 78.5408 | G43: 6 dias x 8 horas/dia
A46: *SICRO outubro/2021
A47: Ítem | B47: SICRO | C47: Discriminação | D47: Unidade | E47: Valor Unitário (R$) | F47: Valor com BDI (R$)
A48: 2.9 | B48: P9860 | C48: MERGULHADOR | D48: H | E48: =27.5721*1.2512 -> 34.49821152 | F48: =E48*(1+BDI!D35) -> 44.15771075 | G48: 5 dIas
A49: 2.10 | B49: P9802 | C49: AJUDANTE ESPECIALIZADO PARA MERGULHADOR | D49: H | E49: 21.6548 | F49: =E49*(1+BDI!D35) -> 27.718144 | G49: 6 dias x 5 horas/dia
A50: * a equipe de mergulho deverá estar presente no levantamento dimensional inicial, na substituição das comportas e havendo necessidade extra

Sheet SINAPI BLOCO DE ANCORAGEM
A17: SINAPI - CONFECÇÃO DO BLOCO DE ANCORAGEM (não desonerado)
A18: *SINAPI GO jan/22
A19: Item | B19: SINAPI | C19: Descrição | D19: Unidade | E19: Quantidade | F19: Valor Unitário (R$) | G19: Valor Unitário com BDI (R$) | H19: MEMÓRIA DE CÁLCULO | I19: Coef.segurança 10%
A21: 1.14 | B21: 96522 | C21: Escavação manual para bloco de coroamento ou sapata sem escavação para formas | D21: M³ | E21: 16 | F21: 129.39 | G21: =F21*(1+BDI!D35) -> 165.6192 | H21: =0.75*3.6*5+(2*((3.1416*(0.1^2)*0.6))) -> 13.5376992 | I21: =H21*1.1 -> 14.89146912
A23: 1.15 | B23: 96531 | C23: Fabricação, montagem e desmontagem de forma para bloco de coroamento | D23: M² | E23: 37 | F23: 126.63 | G23: =F23*(1+BDI!D35) -> 162.0864 | H23: =(2*(5*2.5))+(2*(2.5*0.96))+(0.96*5) -> 34.6 | I23: =H23*1.1 -> 38.06
A25: 1.3 | B25: 96555 | C25: Concretagem de blocos de coroamento , FCK 30, com lançamento, adensamento e acabamento | D25: M³ | E25: 29 | F25: 608.18 | G25: =F25*(1+BDI!D35) -> 778.4704 | H25: =H21+(0.96*5*2.5)+(2*(3.1416*(0.1^2))*0.6) -> 25.5753984 | I25: =H25*1.1 -> 28.13293824

Sheet Cotações Fornecimento
D1: Ministério do Desenvolvimento Regional - MDR
D2: Companhia do Desenvolvimento dos Vales do São Francisco e Parnaíba
D3: Codevasf - Brasília
A7: Cotações - Equipamentos e materiais / Barragem do Paranã
A9: Item | B9: Descrição | C9: Cotação 1 | E9: Cotação 2 | G9: Cotação 3 | I9: Valor Mediana | J9: Valor Médio | K9: Menor valor (mediana/média) c/ BDI NÃODESONERADO | L9: Menor valor (mediana/média) c/ BDI DESONERADO
A11: 1.1 | B11: Válvula Dispersora | C11: 1100000 | D11: (J&R.NET) | E11: 800000 | F11: (Hydrostec) | G11: 1160000 | H11: (Hidropoços) | I11: =MEDIAN(C11,E11,G11) -> 1100000 | J11: =(C11+E11+G11)/3 -> 1020000 | K11: =MINA(I11,J11)*(1+[1]BDI!I35) -> 1203600 | L11: =MINA(I11,J11)*(1+[1]BDI!I34) -> 1294788
A13: 1.2 | B13: Comporta Deslizante | C13: 432000 | D13: (J&R.NET) | E13: 326500 | F13: (Hydrostec) | G13: 430000 | H13: (Hidropoços) | I13: =MEDIAN(C13,E13,G13) -> 430000 | J13: =(C13+E13+G13)/3 -> 396166.6667 | K13: =MINA(I13,J13)*(1+[1]BDI!I35) -> 467476.6667 | L13: =MINA(I13,J13)*(1+[1]BDI!I34) -> 502893.9667
A15: 1.3 | B15: Sensor | C15: 7429.5 | D15: (Sigma) | E15: 1590 | F15: (Zurich) | G15: 2425.58 | H15: (Novus) | I15: =MEDIAN(C15,E15,G15) -> 2425.58 | J15: =(C15+E15+G15)/3 -> 3815.026667 | K15: =MINA(I15,J15)*(1+[1]BDI!I35) -> 2862.1844 | L15: =MINA(I15,J15)*(1+[1]BDI!I34) -> 3079.031252
A17: 1.4 | B17: Tubo PF | C17: 32000 | D17: (J&R.NET) | E17: 20100 | F17: (Hydrostec) | G17: 30000 | H17: (Hidropoços) | I17: =MEDIAN(C17,E17,G17) -> 30000 | J17: =(C17+E17+G17)/3 -> 27366.66667 | K17: =MINA(I17,J17)*(1+[1]BDI!I35) -> 32292.66667 | L17: =MINA(I17,J17)*(1+[1]BDI!I34) -> 34739.24667
A19: 1.5 | B19: Virola FF | C19: 55000 | D19: (J&R.NET) | E19: 38000 | F19: (Hydrostec) | G19: 53000 | H19: (Hidropoços) | I19: =MEDIAN(C19,E19,G19) -> 53000 | J19: =(C19+E19+G19)/3 -> 48666.66667 | K19: =MINA(I19,J19)*(1+[1]BDI!I35) -> 57426.66667 | L19: =MINA(I19,J19)*(1+[1]BDI!I34) -> 61777.46667
A21: 1.6 | B21: Junta Dresser | C21: 40000 | D21: (J&R.NET) | E21: 25000 | F21: (Hydrostec) | G21: 30000 | H21: (Hidropoços) | I21: =MEDIAN(C21,E21,G21) -> 30000 | J21: =(C21+E21+G21)/3 -> 31666.66667 | K21: =MIN(I21,J21)*(1+[1]BDI!I35) -> 35400 | L21: =MIN(I21,J21)*(1+[1]BDI!I34) -> 38082
A23: 1.7 | B23: Crivo | C23: 692.06 | D23: (Madeira) | E23: 725.4 | F23: (Magazine) | G23: 727 | H23: (Loja do Mec.) | I23: =MEDIAN(C23,E23,G23) -> 725.4 | J23: =(C23+E23+G23)/3 -> 714.82 | K23: =MIN(I23,J23)*(1+[1]BDI!I35) -> 843.4876 | L23: =MIN(I23,J23)*(1+[1]BDI!I34) -> 907.392508
A25: 1.8 | B25: Boia | C25: 450.55 | D25: (C. Náutica) | E25: 465 | F25: (Velamar) | G25: 469.2 | H25: (Âncora) | I25: =MEDIAN(C25,E25,G25) -> 465 | J25: =(C25+E25+G25)/3 -> 461.5833333 | K25: =MIN(I25,J25)*(1+[1]BDI!I35) -> 544.6683333 | L25: =MIN(I25,J25)*(1+[1]BDI!I34) -> 585.9338833
A27: 1.9 | B27: Gerador | C27: 7781.66 | D27: (Extra) | E27: 7827.43 | F27: (Estrela) | G27: 8128.89 | H27: (Submarino) | I27: =MEDIAN(C27,E27,G27) -> 7827.43 | J27: =(C27+E27+G27)/3 -> 7912.66 | K27: =MIN(I27,J27)*(1+[1]BDI!I35) -> 9236.3674 | L27: =MIN(I27,J27)*(1+[1]BDI!I34) -> 9936.139642
A29: 1.10 | B29: Cabo Tripolar | C29: 25.58 | D29: (SINAPI GO 39260 | E29: # | G29: # | J29: =C29 -> 25.58 | K29: =J29*(1+[1]BDI!I35) -> 30.1844 | L29: =J29*(1+[1]BDI!I34) -> 32.471252
D30: 2022-01-01
A32: 1.11 | B32: Bloqueador | C32: 13140 | D32: (Maccafer) | E32: 14624 | F32: (Nunes) | G32: 19583 | H32: (Icser) | I32: =MEDIAN(C32,E32,G32) -> 14624 | J32: =(C32+E32+G32)/3 -> 15782.33333 | K32: =MIN(I32,J32)*(1+[1]BDI!I35) -> 17256.32 | L32: =MIN(I32,J32)*(1+[1]BDI!I34) -> 18563.7056
A34: 1.12 | B34: Kit de Inflar | C34: 480 | D34: (Icser) | E34: 390 | F34: (Maccafer) | G34: 450 | H34: (Nunes) | I34: =MEDIAN(C34,E34,G34) -> 450 | J34: =(C34+E34+G34)/3 -> 440 | K34: =MIN(I34,J34)*(1+[1]BDI!I35) -> 519.2 | L34: =MIN(I34,J34)*(1+[1]BDI!I34) -> 558.536
A36: 1.13 | B36: Compressor* | C36: 1099.9 | D36: (Loja do Mec.) | E36: 1196.91 | F36: (Dutra) | G36: 1324 | H36: (Submarino) | I36: =MEDIAN(C36,E36,G36) -> 1196.91 | J36: =(C36+E36+G36)/3 -> 1206.936667 | K36: =MIN(I36,J36)*(1+[1]BDI!I35) -> 1412.3538 | L36: =MIN(I36,J36)*(1+[1]BDI!I34) -> 1519.357554
A38: 1.14 | B38: Guindaste hidráulico 60T | C38: 83.34 | D38: (SINAPI GO 93287 | E38: # | G38: # | J38: =C38 -> 83.34 | K38: =J38*(1+[1]BDI!D35) -> 106.6752 | L38: =J38*(1+[1]BDI!D34) -> 111.6756 | M38: *BDI serviços
B39: custo hora | D39: 2022-01-01
A41: 1.15 | B41: Construção de abrigo | D41: IBGE/SINAPI GO
B42: para Unidade Oleodinâmica | C42: 1504.06 | D42: 2022-01-01 | E42: # | G42: # | J42: =C42 -> 1504.06 | K42: =J42*(1+[1]BDI!D35) -> 1925.1968 | L42: =J42*(1+[1]BDI!D34) -> 2015.4404 | M42: *BDI serviços
B43: custo m²

Sheet BDI
B1: Ministério do Desenvolvimento Regional - MDR
B2: Companhia do Desenvolvimento dos Vales do São Francisco e Parnaíba
B3: Codevasf - Brasília
A7: BDI Serviços | F7: BDI FORNECIMENTO
A9: DETALHAMENTO DO BDI | F9: DETALHAMENTO DO BDI
A10: Serviços não desonerados | F10: FORMECIMENTO sendo os serviços não desonerados
A13: Item | B13: Descrição dos serviços | C13: Valores de Referência (%) | D13: Preço de Venda (%) | F13: Item | G13: Descrição dos serviços | H13: Valores de Referência (%) | I13: Adotado (%)
A15: 1 | B15: Administração Central (Ac) | C15: 3,43% - 4,93% - 6,71% | D15: 0.0493 | F15: 1 | G15: Administração Central (Ac ) | H15: 1,50% - 3,45% - 4,49% | I15: 0.0449
A16: 1.1 | B16: ESCRITÓRIO CENTRAL | F16: 1.1 | G16: ESCRITÓRIO CENTRAL
A17: 1.2 | B17: VIAGENS | F17: 1.2 | G17: VIAGENS
A18: 1.3 | B18: OUTROS | F18: 1.3 | G18: OUTROS
A20: 2 | B20: Impostos e Taxas (I) | D20: =SUM(D21:D24) -> 0.1315 | F20: 2 | G20: Impostos e Taxas ( I ) | I20: =0.02+SUM(I21:I24) -> 0.1015
A21: 2.1 | B21: ISS | C21: 0.05 | D21: 0.05 | F21: 2.1 | G21: ISS | H21: - | I21: 0
A22: 2.2 | B22: PIS | C22: de 0,65% a 0,65% | D22: 0.0065 | F22: 2.2 | G22: PIS | H22: 0.0065 | I22: 0.0065
A23: 2.3 | B23: Cofins | C23: de 3,00% a 3,00% | D23: 0.03 | F23: 2.3 | G23: Cofins | H23: 0.03 | I23: 0.03
A24: 2.4 | B24: CPRB | C24: 0.045 | D24: 0.045 | F24: 2.4 | G24: CPRB | H24: 0.045 | I24: 0.045
A26: 3 | B26: Garantia e Seguros ( Gs ) | C26: 0,28% - 0,49% - 0,75% | D26: 0.0049 | F26: 3 | G26: Garantia e Seguros ( Gs ) | H26: 0,30% - 0,48% - 0,82% | I26: 0.0082
A28: 4 | B28: Risco ( R ) | C28: 1,0% - 1,39% - 6,71% | D28: 0.0139 | F28: 4 | G28: Risco ( R ) | H28: 0,56 - 0,85% - 0,89% | I28: 0.0089
A30: 4 | B30: Despesas Financeiras (F) | C30: 0,94% - 0,99% - 1,17% | D30: 0.0099 | F30: 5 | G30: Despesas Financeiras ( Df ) | H30: de 0,85% - 0,85% - 1,11% | I30: 0.0111
A32: 5 | B32: Lucro (L) | C32: 6,74% - 8,04% - 9,40% | D32: 0.0804 | F32: 6 | G32: Lucro ( L ) | H32: de 3,50% - 5,11% - 6,22% | I32: 0.0622
B35: BDI (%) não desonerado | D35: =ROUND(((((1+D15+D26+D28)*(1+D30)*(1+D32))/(1-(D21+D22+D23)))-1),2) -> 0.28 | G35: BDI (%) não desonerado | I35: =ROUND(((((1+I15+I26+I28)*(1+I30)*(1+I32))/(1-(I21+I22+I23)))-1),2) -> 0.18
B37: OBS1: ADOTADO VALOR MÉDIO QUARTIL | G37: OBS1: ADOTADO VALOR 3º QUARTIL
B38: OBS2: Conforme LEI 13.161 /2015: Em orçamento onde optar-se pelos erviços com desoneração/desonerado, deverá ser incluído no CPRB o percentual de 4,5% referente a contribuíção previdenciaária. | G38: OBS2: Conforme LEI 13.161 /2015: Em orçamento onde optar-se pelos erviços com desoneração/desonerado, deverá ser incluído no CPRB o percentual de 4,5% referente a contribuíção previdenciaária.
B39: OBS3:Adotado Construção de redes de abastecimento de água, coleta de esgoto, e construção correlatas | G39: OBS3:Adotado Construção de redes de abastecimento de água, coleta de esgoto, e construção correlatas
B40: OBS4: ISS DE 5% REFERÊNCIADO GOIÁS

Sheet Cronograma Físico Financeiro
C1: Ministério do Desenvolvimento Regional - MDR
C2: Companhia do Desenvolvimento dos Vales do São Francisco e Parnaíba
C3: Codevasf - Brasília
A8: CRONOGRAMA FÍSICO FINANCEIRO
A9: Fornecimento e Montagem de Equipamentos Hidromecânicos para a Barragem do Paranã
E11: Mês
A12: Item | B12: Descrição | C12: Unidade | D12: Quantidade | E12: 1 | F12: 2 | G12: 3 | H12: 4 | I12: 5 | J12: 6 | K12: 7 | L12: 8 | M12: Valor (R$)
A13: 1 | B13: Fornecimento de Equipamentos
A14: 1.1 | B14: Fabricação, testes e entrega das Peças | C14: un | D14: 15 | M14: 2518908.82
A15: 2 | B15: Serviços de Obras Civis
A16: 2.1 | B16: Escavação Manual | C16: m³ | D16: 15 | M16: 19628.533
A17: 2.2 | B17: Montagem e Desmontagem de forma | C17: m² | D17: 38 | M17: 22362.7033
A18: 2.3 | B18: Concretagem de Bloco de coroamento | C18: m³ | D18: 28 | M18: 36888.6133
A19: 3 | B19: Serviços de Montagem Eletromecânica
A20: 3.1 | B20: Montagem da Válvula Dispersora | C20: un | D20: 1 | M20: 28324.6613
A21: 3.2 | B21: Montagem das Comportas | C21: un | D21: 2 | M21: 29286.3303
A22: 3.3 | B22: Montagem da Unidade Oleodinâmica | C22: un | D22: 1 | M22: 32835.05205
A23: 3.4 | B23: Montagem Quadro alimentação/comando | C23: un | D23: 1 | M23: 26143.81191
A24: 3.5 | B24: Instalação/Configuração Sensor de nível | C24: un | D24: 2 | M24: 19642.41861
A25: 3.6 | B25: Testes e Comissionamento | C25: --- | D25: --- | M25: 24906.81528
L28: Total (R$) | M28: =SUM(M14:M25) -> 2758927.759
